bitfinex/quotes_ETHUSD_20240810
["timestamp","ask_amount","ask_price","bid_price","bid_amount"]
[1723316841913,0.08055883,2603.3,2602.8,2.22917207]
[1723316842217,0.0029971,2603.3,2602.8,2.22917207]
[1723316842385,0.0772544,2603.2,2602.8,2.22917207]
[1723316842591,0.0029971,2603.3,2602.8,2.22917207]
[1723316842816,0.07715654,2603.1,2602.8,2.22917207]
[1723316842971,0.0029971,2603.3,2602.9,0.98722928]
[1723316843316,0.07730847,2603.2,2602.8,2.22917207]
[1723316843687,0.0029971,2603.3,2602.8,2.22917207]
[1723316843884,0.07715738,2603.1,2602.8,2.22917207]
[1723316844118,0.07725524,2603.2,2602.8,4.15013207]
[1723316844416,0.0029971,2603.3,2602.8,2.22917207]
[1723316844587,0.07735879,2603.1,2602.8,4.15012207]
[1723316844820,0.0029971,2603.3,2602.8,2.22916207]
[1723316844987,0.0029971,2603.3,2603.0,1.92084]
[1723316845194,0.0029971,2603.3,2603.1,1.92077]
[1723316845688,0.0029971,2603.3,2603.2,1.92071]
[1723316847808,0.0029971,2603.3,2603.0,1.92084]
[1723316849043,0.0029971,2603.3,2603.0,3.84165]
[1723316849238,0.0029971,2603.3,2603.1,1.92077]
[1723316851337,0.0029971,2603.3,2602.8,4.15014207]
[1723316851723,0.0029971,2603.3,2602.9,1.92092]
[1723316852718,0.0029971,2603.3,2603.0,1.92079]
[1723316853226,0.0029971,2603.3,2603.2,1.92071]
[1723316853427,0.0029971,2603.3,2603.2,2.304855]
[1723316853619,0.0029971,2603.3,2603.1,1.92074]
[1723316855254,0.0029971,2603.3,2602.9,1.92089]
[1723316855255,2.4973971,2603.3,2602.9,1.92089]
[1723316859825,0.07466827,2603.2,2602.9,1.92089]
[1723316860029,2.4973971,2603.3,2602.9,1.92089]
[1723316860259,0.07459589,2603.1,2602.9,1.92089]
[1723316860431,2.4973971,2603.3,2602.9,3.10021628]
[1723316860766,0.07449803,2603.0,2602.9,1.92089]
[1723316861055,0.07449176,2603.0,2602.9,1.92089]
[1723316861255,2.4973971,2603.3,2602.9,1.92089]
[1723316861419,0.07446629,2603.0,2602.9,1.92089]
[1723316861623,2.4973971,2603.3,2602.9,3.06939507]
[1723316861855,0.07444083,2603.0,2602.9,1.92089]
[1723316862029,0.0029971,2603.3,2603.2,3.84142]
[1723316862225,0.0029971,2603.3,2603.2,3.91822871]
[1723316862455,0.0029971,2603.3,2603.2,3.84142]
[1723316862654,0.0029971,2603.3,2603.2,4.939605]
[1723316864520,0.0029971,2603.3,2603.2,5.00136691]
[1723316865158,0.0029971,2603.3,2603.2,9.89851352]
[1723316865329,0.0029971,2603.3,2603.2,18.5122229]
[1723316865531,0.0029971,2603.3,2603.2,19.17549891]
[1723316865863,0.0029971,2603.3,2603.2,17.25484223]
[1723316866023,0.0029971,2603.3,2603.2,13.56312688]
[1723316866229,0.0029971,2603.3,2603.2,16.53264042]
[1723316866466,0.0029971,2603.3,2603.2,17.19716299]
[1723316866672,0.0029971,2603.3,2603.2,16.53265059]
[1723316867056,0.0029971,2603.3,2603.2,16.891915]
[1723316867233,0.0029971,2603.3,2603.2,17.1970571]
[1723316867437,0.0029971,2603.3,2603.2,16.53256085]
[1723316867944,0.0029971,2603.3,2603.2,12.840915]
[1723316869375,0.0029971,2603.3,2603.2,13.50541125]
[1723316869569,0.0029971,2603.3,2603.2,10.370205]
[1723316870565,0.0029971,2603.3,2603.2,7.370205]
[1723316870732,0.0029971,2603.3,2603.2,4.939605]
[1723316872242,0.0029971,2603.3,2603.2,5.01640885]
[1723316872568,0.0029971,2603.3,2603.2,4.939605]
[1723316880075,0.0029971,2603.3,2603.2,3.018895]
[1723316880278,0.0029971,2603.3,2603.2,4.939605]
[1723316880580,0.0753197,2603.3,2603.2,3.84142]
[1723316880784,0.0029971,2603.3,2603.2,3.84142]
[1723316885067,0.0029971,2603.3,2603.2,1.92071]
[1723316887799,0.0029971,2603.3,2602.7,11.87850069]
[1723316887800,2.3747971,2603.3,2602.9,1.92086]
[1723316887964,2.3747971,2603.3,2603.0,1.92081]
[1723316888357,2.3747971,2603.3,2603.1,1.92078]
[1723316888663,2.3747971,2603.3,2603.1,1.92073]
[1723316889484,2.3747971,2603.3,2603.2,1.92071]
[1723316891376,0.0029971,2603.3,2603.2,3.84142]
[1723316891692,0.0029971,2603.3,2603.2,4.51214433]
[1723316892760,0.0029971,2603.3,2603.2,6.43285433]
[1723316893780,0.0029971,2603.3,2603.2,4.51214433]
[1723316900084,0.0029971,2603.3,2603.2,2.59143433]
[1723316900280,0.07535003,2603.3,2603.2,1.92071]
[1723316900605,0.07535003,2603.3,2603.1,1.92077]
[1723316900767,0.07535003,2603.3,2603.0,1.92081]
[1723316902489,0.07535003,2603.3,2602.5,7.35767712]
[1723316902490,2.29,2603.2,2602.6,1.9211]
[1723316902694,2.36220092,2603.2,2602.6,1.9211]
[1723316902898,2.29,2603.1,2602.6,1.9211]
[1723316903218,2.29,2603.1,2602.5,1.92122]
[1723316903219,2.29,2603.0,2602.5,1.92122]
[1723316903381,2.29,2602.9,2602.6,1.92114]
[1723316903719,2.29,2602.9,2602.7,1.92103]
[1723316903720,0.07176555,2602.8,2602.7,1.92103]
[1723316904714,0.07176555,2602.8,2602.5,3.84238]
[1723316904938,2.29,2602.9,2602.6,1.92114]
[1723316905229,2.29,2603.2,2602.6,0.38423]
[1723316905382,2.29,2603.2,2603.0,1.9208]
[1723316905583,0.07191016,2603.1,2603.0,1.9208]
[1723316905784,2.29,2603.2,2603.0,1.9208]
[1723316906099,0.07186431,2603.1,2603.0,1.9208]
[1723316906287,2.29,2603.2,2603.1,1.92078]
[1723316906487,2.29,2603.2,2603.0,1.9208]
[1723316906488,0.07186431,2603.1,2603.0,1.9208]
[1723316906688,2.29,2603.2,2603.1,1.92078]
[1723316908026,2.29,2603.2,2602.9,1.92091]
[1723316908186,2.51929971,2603.2,2602.3,2.789]
[1723316908387,2.51929971,2603.2,2602.5,1.92118]
[1723316908388,2.29,2603.1,2602.5,1.92118]
[1723316910078,2.29,2603.0,2602.5,1.92118]
[1723316910388,2.29,2603.0,2602.5,1.92121]
[1723316912553,2.4618,2602.8,2602.1,2.789]
[1723316912757,4.38281,2602.8,2602.2,1.9214]
[1723316912965,2.4618,2602.7,2602.2,1.9214]
[1723316914085,0.06877361,2602.6,2602.2,1.9214]
[1723316914292,2.4618,2602.7,2602.2,1.9214]
[1723316914448,2.4618,2602.7,2602.1,1.506056]
[1723316914449,0.06867572,2602.5,2602.1,1.506056]
[1723316914653,4.38292,2602.7,2602.1,1.506056]
[1723316914847,0.06850187,2602.4,2602.0,1.92155]
[1723316915048,2.4618,2602.3,2602.0,1.92155]
[1723316915944,2.4618,2602.3,2601.8,1.92168]
[1723316916148,2.4618,2602.3,2601.9,2.113788]
[1723316916469,0.06824932,2602.2,2602.0,3.84313]
[1723316916667,2.4618,2602.3,2602.0,1.92154]
[1723316916880,0.0681514,2602.1,2602.0,1.92154]
[1723316917094,2.4618,2602.3,2602.0,1.92154]
[1723316917495,0.0681514,2602.1,2602.0,1.92154]
[1723316917793,2.4618,2602.3,2602.0,1.92154]
[1723316918153,0.06824932,2602.2,2602.0,1.92154]
[1723316918553,2.4618,2602.3,2602.0,1.92154]
[1723316918893,0.06824932,2602.2,2601.9,2.113828]
[1723316919094,2.4618,2602.3,2601.9,2.113828]
[1723316919095,2.4618,2602.3,2601.9,1.92166]
[1723316919262,0.0681514,2602.1,2601.9,1.92166]
[1723316919462,2.4618,2602.3,2601.9,1.92166]
[1723316919793,0.06805347,2602.0,2601.9,1.92166]
[1723316920003,2.4618,2602.3,2601.9,1.92166]
[1723316920210,0.06805347,2602.0,2601.9,1.92166]
[1723316920371,2.4618,2602.3,2601.9,1.92166]
[1723316920570,0.06805347,2602.0,2601.9,1.92166]
[1723316920770,2.4618,2602.3,2601.8,1.92173]
[1723316921391,0.0682291,2602.2,2601.8,1.92173]
[1723316921803,2.4618,2602.3,2601.8,1.92173]
[1723316921965,0.06825488,2602.1,2601.8,1.92173]
[1723316922166,0.06832733,2602.2,2601.8,2.306082]
[1723316922362,0.06793434,2602.0,2601.8,1.92173]
[1723316922602,2.4618,2602.3,2601.8,1.92173]
[1723316922792,0.0678364,2601.9,2601.8,1.92173]
[1723316923267,2.4618,2602.3,2601.9,1.92165]
[1723316929019,1.92152,2602.1,2601.5,2.52374803]
[1723316929320,2.4618,2602.0,2601.5,1.92194]
[1723316929828,2.4618,2602.0,2601.7,1.92176]
[1723316930120,2.4618,2602.0,2601.8,0.192176]
[1723316930299,2.4618,2602.0,2601.7,1.92176]
[1723316930495,2.4618,2602.0,2601.8,1.92173]
[1723316931426,2.4618,2602.0,2601.7,1.92176]
[1723316931787,2.4618,2602.0,2601.8,1.92173]
[1723316931987,0.0029971,2602.4,2601.8,2.306079]
[1723316932188,2.3944,2602.3,2602.0,1.92159]
[1723316934937,0.0672394,2602.2,2602.0,1.92159]
[1723316935137,2.3944,2602.3,2602.0,1.92159]
[1723316935438,0.0672394,2602.2,2602.0,1.92159]
[1723316935607,0.0672394,2602.2,2601.8,1.92169]
[1723316935813,2.3944,2602.3,2601.8,3.08469]
[1723316936023,0.06714151,2602.1,2601.8,3.08469]
[1723316936222,2.3944,2602.3,2601.8,3.08469]
[1723316936223,0.0672394,2602.2,2601.8,3.08469]
[1723316936428,0.06704362,2602.0,2601.8,3.08469]
[1723316936721,0.06694571,2601.9,2601.8,3.08469]
[1723316936943,3.01839371,2602.3,2601.8,3.08469]
[1723316937235,0.0672394,2602.2,2601.8,3.08469]
[1723316937536,3.01839371,2602.3,2601.8,3.08469]
[1723316937842,0.06712476,2602.2,2601.8,3.08469]
[1723316938215,3.01839371,2602.3,2601.8,3.08469]
[1723316938428,0.06702687,2602.1,2601.8,3.08469]
[1723316938766,2.46132898,2602.0,2601.8,3.08469]
[1723316939334,2.46132898,2602.0,2601.9,1.92167]
[1723316939538,0.06692898,2602.0,2601.9,1.92167]
[1723316939699,2.3944,2602.2,2601.9,1.92167]
[1723316940036,0.06701857,2602.1,2601.9,1.92167]
[1723316941245,0.06701857,2602.1,2602.0,5.76477]
[1723316941553,0.0029971,2602.4,2602.3,5.76411]
[1723316941837,0.0029971,2602.4,2602.3,9.3635424]
[1723316942214,0.0029971,2602.4,2602.3,9.28671]
[1723316942431,0.0029971,2602.4,2602.3,9.83671]
[1723316943852,0.0029971,2602.4,2602.3,11.46171]
[1723316944065,0.0029971,2602.4,2602.3,12.9771882]
[1723316945956,0.0029971,2602.4,2602.3,10.0675882]
[1723316948830,0.0029971,2602.4,2602.3,8.1462182]
[1723316950080,0.0029971,2602.4,2602.3,5.3582182]
[1723316950287,0.0029971,2602.4,2602.3,3.84274]
[1723316950443,0.06313495,2602.4,2602.3,3.84274]
[1723316950643,0.0029971,2602.4,2602.3,3.84274]
[1723316952475,0.0029971,2602.4,2602.3,1.92137]
[1723316954152,0.06310518,2602.4,2602.3,1.92137]
[1723316954884,0.06310518,2602.4,2602.2,1.92144]
[1723316955180,2.4741,2602.3,2602.1,1.92151]
[1723316956189,0.0029971,2602.4,2602.3,1.92137]
[1723316956689,0.0029971,2602.4,2602.3,3.84274]
[1723316956990,0.0029971,2602.4,2602.3,4.54109603]
[1723316957143,0.0029971,2602.4,2602.3,4.464254]
[1723316958180,0.0029971,2602.4,2602.3,1.92137]
[1723316964797,0.06069037,2602.4,2602.3,1.92137]
[1723316965617,0.06069037,2602.4,2602.1,1.92146]
[1723316965822,2.4741,2602.3,2602.1,1.92146]
[1723316966036,2.4741,2602.3,2601.9,3.84324]
[1723316966309,0.05748079,2602.2,2602.0,1.92159]
[1723316966674,2.4741,2602.3,2602.0,1.92159]
[1723316966871,0.05738287,2602.1,2602.0,1.92159]
[1723316967077,2.4741,2602.3,2602.0,1.92159]
[1723316967510,0.0554543,2602.2,2602.0,1.92159]
[1723316967910,2.4741,2602.3,2602.0,1.92159]
[1723316968312,0.0554543,2602.2,2602.0,1.92159]
[1723316968507,0.0554543,2602.2,2602.0,2.60591]
[1723316968712,2.4741,2602.3,2602.1,1.9215]
[1723316969078,0.05543639,2602.2,2602.1,1.9215]
[1723316969479,2.4741,2602.3,2602.1,1.9215]
[1723316969720,2.4741,2602.3,2602.2,1.162]
[1723316969896,0.0029971,2602.4,2602.3,1.92137]
[1723316970112,0.0029971,2602.4,2602.3,3.91957842]
[1723316970719,0.0029971,2602.4,2602.3,1.99821028]
[1723316971216,0.0029971,2602.4,2602.3,2.55165361]
[1723316971381,0.0029971,2602.4,2602.3,4.47302361]
[1723316971603,0.0029971,2602.4,2602.3,2.55165361]
[1723316971781,0.0029971,2602.4,2602.3,4.47302361]
[1723316972004,0.0029971,2602.4,2602.3,2.55165361]
[1723316972207,0.0029971,2602.4,2602.3,4.47302361]
[1723316972581,0.0029971,2602.4,2602.3,2.55165361]
[1723316972787,0.0029971,2602.4,2602.3,4.47302361]
[1723316972983,0.0029971,2602.4,2602.3,3.91958028]
[1723316974024,2.4371971,2602.4,2601.8,3.69370845]
[1723316974210,2.4342,2601.8,2601.1,0.60230255]
[1723316974522,2.4342,2601.8,2600.5,1.92268]
[1723316974523,1.92211,2601.3,2600.5,1.92268]
[1723316974689,1.92221,2601.2,2600.5,1.92268]
[1723316974886,1.92226,2601.1,2600.5,2.317416]
[1723316975819,1.92211,2601.3,2600.5,2.317366]
[1723316976118,1.92211,2601.3,2600.6,1.92258]
[1723316977025,2.4342,2601.4,2600.8,1.92243]
[1723316977326,4.35625,2601.4,2600.7,1.92254]
[1723316977523,2.35775,2601.3,2600.7,1.92254]
[1723316979500,1.92227,2601.1,2600.5,1.92268]
[1723316979696,2.350272,2601.1,2600.5,1.92268]
[1723316979899,0.0529017,2601.0,2600.5,1.92268]
[1723316981693,2.4342,2600.9,2600.4,0.10184]
[1723316982116,0.05268774,2600.8,2600.4,0.10184]
[1723316982320,0.05268774,2600.8,2600.4,2.02461]
[1723316982726,0.05268774,2600.8,2600.4,0.10184]
[1723316988707,0.49361851,2600.8,2600.4,0.10184]
[1723316989037,2.4342,2600.7,2600.4,0.10184]
[1723316989221,1.9227,2600.5,2600.4,0.10184]
[1723316989422,1.97112214,2600.5,2600.4,0.10184]
[1723316990127,3.89382214,2600.5,2600.4,0.10184]
[1723316990708,6.32802214,2600.5,2600.4,0.10184]
[1723316991035,7.15308135,2600.5,2600.4,0.10184]
[1723316991537,12.62578135,2600.5,2600.4,0.10184]
[1723316991703,14.54848135,2600.5,2600.4,0.10184]
[1723316993447,10.15308135,2600.5,2600.4,0.10184]
[1723316997203,10.15308135,2600.5,2380.0,1.85]
[1723316997408,1.92292,2600.2,2599.5,1.9234]
[1723316997949,1.97083396,2600.1,2599.4,1.92349]
[1723316998166,1.97083396,2600.1,2598.8,2.789]
[1723316998449,21.74083396,2600.1,2599.3,1.92353]
[1723316998650,23.61389396,2600.1,2599.3,1.92353]
[1723316998944,0.04608763,2600.0,2599.5,1.92338]
[1723316999150,0.04608763,2600.0,2599.6,0.07692269]
[1723316999450,19.77,2600.2,2599.5,1.92338]
[1723316999640,2.2657,2600.1,2599.3,1.92355]
[1723316999801,4.0348899,2600.1,2599.3,1.92354]
[1723317000202,2.1118899,2600.1,2599.3,1.92354]
[1723317000449,2.1118899,2600.1,2599.5,1.92339]
[1723317000954,4.0348999,2600.1,2599.4,2.115854]
[1723317001166,4.0348999,2600.1,2599.4,0.192354]
[1723317001464,1.92308,2600.0,2599.3,1.92358]
[1723317001621,1.72308,2600.0,2599.3,1.92358]
[1723317001947,0.04592428,2599.9,2599.3,1.92358]
[1723317002153,0.04592428,2599.9,2599.3,1.92354]
[1723317002309,2.0657,2600.1,2599.3,1.92354]
[1723317002509,3.99687854,2600.1,2599.5,1.92339]
[1723317002717,0.04602123,2600.0,2599.5,1.92339]
[1723317003219,0.04602123,2600.0,2599.3,4.278554]
[1723317003416,1.96911123,2600.0,2599.3,2.355014]
[1723317003643,1.92322,2599.8,2599.1,1.92373]
[1723317003867,2.79417044,2600.0,2599.3,1.92358]
[1723317004155,0.0457449,2599.7,2599.1,1.92368]
[1723317004359,1.92315,2599.9,2599.2,1.92365]
[1723317004571,0.0456405,2599.6,2599.2,1.92365]
[1723317004869,19.77,2599.8,2599.3,1.92357]
[1723317005065,0.0455424,2599.5,2599.3,1.92357]
[1723317005361,19.77,2599.8,2599.6,1.92334]
[1723317005530,19.77,2599.8,2599.4,4.39158531]
[1723317005869,19.77,2599.8,2599.7,3.84658]
[1723317006419,19.8158514,2599.8,2599.7,3.84658]
[1723317006668,0.0458514,2599.8,2599.7,3.84658]
[1723317006867,0.0458514,2599.8,2599.7,6.8993717]
[1723317007167,12.19,2600.6,2600.2,1.9229]
[1723317007338,10.3,2600.7,2600.2,1.9229]
[1723317007521,10.3,2600.7,2600.2,1.99980372]
[1723317007722,7.3,2600.7,2600.3,0.07690367]
[1723317008131,7.3,2600.7,2600.3,1.99975367]
[1723317008636,7.3,2600.7,2600.3,1.92285]
[1723317009481,1.92226,2601.1,2600.3,1.92285]
[1723317009482,29.3357,2601.5,2600.9,1.92236]
[1723317009763,9.5657,2601.5,2601.1,1.92225]
[1723317009925,0.04596373,2601.4,2601.1,1.92225]
[1723317011394,0.04596373,2601.4,2600.4,2.3912]
[1723317011395,0.04596373,2601.4,2601.3,1.92211]
[1723317011545,7.3,2602.0,2601.7,1.92176]
[1723317011877,0.04330435,2601.9,2601.7,1.92176]
[1723317012037,0.04330435,2601.9,2601.8,0.07686025]
[1723317012243,0.04330435,2601.9,2601.8,1.99860025]
[1723317012471,31.96,2602.3,2601.7,1.92176]
[1723317012791,3.8302436,2602.2,2601.7,1.92176]
[1723317012986,3.87074492,2602.2,2601.7,1.92176]
[1723317013647,3.87074492,2602.2,2601.8,1.92174]
[1723317013846,3.87074492,2602.2,2601.7,1.92176]
[1723317014538,3.87074492,2602.2,2601.8,1.92174]
[1723317014735,3.87074492,2602.2,2601.7,1.92176]
[1723317015643,2.3831,2602.0,2601.4,1.92198]
[1723317016086,0.04020756,2601.9,2601.5,1.92196]
[1723317016298,0.04020756,2601.9,2601.6,1.92183]
[1723317017381,0.04020756,2601.9,2601.4,3.84398]
[1723317017585,0.04020756,2601.9,2601.5,1.92196]
[1723317017821,1.96188756,2601.9,2601.2,1.92217]
[1723317017964,1.96188756,2601.9,2601.1,1.92221]
[1723317017965,0.43449876,2601.8,2601.1,1.92221]
[1723317018308,20.24487249,2601.8,2601.2,1.92218]
[1723317019111,20.24487249,2601.8,2601.1,1.92219]
[1723317019270,20.24487249,2601.8,2601.2,1.92214]
[1723317019898,2.21665525,2601.7,2600.9,1.92235]
[1723317020111,2.21665525,2601.7,2601.0,1.92228]
[1723317020312,2.21665525,2601.7,2601.1,1.92225]
[1723317020313,0.04023936,2601.6,2601.1,1.92225]
[1723317020898,2.3831,2601.5,2601.1,1.92225]
[1723317021314,0.03975688,2601.4,2601.1,1.92225]
[1723317021468,0.03975688,2601.4,2601.2,1.92218]
[1723317021664,19.77,2601.8,2601.2,1.92218]
[1723317021893,0.03993459,2601.3,2601.2,1.92218]
[1723317022061,19.77,2601.8,2601.1,0.38446]
[1723317022062,19.77,2601.8,2601.5,1.92192]
[1723317022261,2.3831,2601.9,2601.5,1.92192]
[1723317022472,2.3831,2601.9,2601.3,1.92207]
[1723317022805,2.62141,2601.9,2601.1,1.92225]
[1723317023000,2.62141,2601.9,2601.2,1.92217]
[1723317023211,0.454305,2601.8,2601.2,1.92217]
[1723317023413,0.454305,2601.8,2601.1,1.92225]
[1723317023980,0.454305,2601.8,2601.2,1.92212]
[1723317024178,2.62141,2601.9,2601.3,1.92211]
[1723317024867,0.04017227,2601.8,2601.3,1.92211]
[1723317025316,0.04017227,2601.8,2601.1,1.92221]
[1723317026530,0.04017227,2601.8,2601.3,1.9221]
[1723317027722,4.30497,2601.7,2600.9,1.92237]
[1723317028013,0.47339751,2601.6,2601.0,1.92231]
[1723317028181,0.47339751,2601.6,2601.1,1.92219]
[1723317028182,0.03888328,2601.6,2601.1,1.92219]
[1723317029317,0.03888328,2601.6,2601.2,1.92216]
[1723317029876,0.03888328,2601.6,2601.3,1.92208]
[1723317030385,0.03888328,2601.6,2601.3,2.306507]
[1723317030601,0.03888328,2601.6,2601.5,1.92196]
[1723317031791,0.07901615,2601.6,2601.5,1.92196]
[1723317032186,0.07901615,2601.6,2601.3,1.9221]
[1723317032404,0.07901615,2601.6,2601.1,1.92221]
[1723317032728,3.03222777,2601.6,2601.1,1.92221]
[1723317033674,3.03222777,2601.6,2601.3,0.02198756]
[1723317034383,0.07901615,2601.6,2601.3,0.02198756]
[1723317034811,0.07901615,2601.6,2601.1,1.92221]
[1723317035731,0.07901615,2601.6,2601.2,3.84431]
[1723317035894,0.07901615,2601.6,2601.5,1.92196]
[1723317036234,7.3,2601.8,2601.5,1.92196]
[1723317036525,0.07900645,2601.6,2601.5,1.9988287]
[1723317036993,7.3,2601.8,2601.5,1.9988287]
[1723317037179,0.07900645,2601.6,2601.5,1.9988287]
[1723317037378,7.3,2601.8,2601.5,1.9988287]
[1723317037687,0.07908522,2601.7,2601.5,1.9988287]
[1723317038117,7.3,2601.8,2601.5,1.9988287]
[1723317038326,0.07898881,2601.6,2601.5,1.9988287]
[1723317038614,0.07900645,2601.6,2601.5,1.9988287]
[1723317038819,7.3,2601.8,2601.5,1.9988287]
[1723317039136,0.07900645,2601.6,2601.5,1.9988287]
[1723317039419,0.07900645,2601.6,2601.5,1.92196]
[1723317039630,7.3,2601.8,2601.5,1.92196]
[1723317039930,0.07900645,2601.6,2601.5,1.92196]
[1723317040080,19.77,2601.9,2601.5,1.92196]
[1723317040284,0.07900645,2601.6,2601.3,1.92204]
[1723317040514,2.455,2601.8,2601.3,1.92204]
[1723317040698,0.07891004,2601.5,2601.3,1.92204]
[1723317040909,2.455,2601.8,2601.3,1.92204]
[1723317041110,0.07881362,2601.4,2601.3,1.92204]
[1723317041291,5.091911,2601.8,2601.3,1.92204]
[1723317041485,0.07881362,2601.4,2601.3,1.92204]
[1723317041685,2.455,2601.8,2601.3,1.92204]
[1723317041885,0.07881362,2601.4,2601.3,1.92204]
[1723317042101,2.455,2601.8,2601.1,1.92221]
[1723317042323,2.455,2601.3,2600.9,1.92236]
[1723317042520,2.455,2601.3,2600.9,3.84472]
[1723317042686,0.07861557,2601.2,2600.9,3.84472]
[1723317043115,2.455,2601.3,2600.9,3.84472]
[1723317043414,2.455,2601.3,2600.9,1.92236]
[1723317043718,0.07859049,2601.2,2600.9,3.84472]
[1723317043949,0.07859049,2601.2,2600.9,2.306832]
[1723317044123,2.455,2601.3,2601.1,1.92226]
[1723317045507,2.455,2601.6,2601.1,1.92226]
[1723317046097,28.99177,2601.8,2601.5,1.92191]
[1723317046098,7.3,2601.8,2601.5,1.92191]
[1723317046325,7.3,2601.8,2600.5,1.92266]
[1723317046326,2.455,2602.4,2601.8,1.92174]
[1723317046511,2.455,2602.4,2601.9,1.99849637]
[1723317046697,2.89291571,2602.4,2601.9,1.99849637]
[1723317047197,2.89291571,2602.4,2602.0,1.92157]
[1723317047722,2.89291571,2602.4,2601.9,0.07685637]
[1723317048525,2.89291571,2602.4,2601.9,1.99850637]
[1723317048732,2.89291571,2602.4,2602.0,1.92158]
[1723317049628,2.89291571,2602.4,2602.1,1.92151]
[1723317050396,2.455,2602.4,2602.0,0.07685516]
[1723317050726,0.0029971,2602.6,2602.0,0.07685516]
[1723317050727,0.0029971,2602.6,2602.0,1.99838516]
[1723317053127,0.0029971,2602.6,2602.1,1.92147]
[1723317053330,0.0029971,2602.6,2602.2,0.07684963]
[1723317054821,0.07401825,2602.5,2602.2,0.07684963]
[1723317055933,0.07401825,2602.5,2602.2,2.39022459]
[1723317056133,0.07401825,2602.5,2602.3,1.92137]
[1723317056321,0.07401825,2602.5,2602.2,2.31337496]
[1723317056525,0.07401825,2602.5,2602.2,1.92139]
[1723317056725,0.07401825,2602.5,2602.3,0.07684865]
[1723317058424,0.07401825,2602.5,2602.4,1.9213]
[1723317060204,0.07401825,2602.5,2602.3,0.07684865]
[1723317060612,0.07401825,2602.5,2602.3,1.99820865]
[1723317062233,0.07401825,2602.5,2602.3,2.68661752]
[1723317063016,0.07401825,2602.5,2602.3,0.76525752]
[1723317063317,0.07401825,2602.5,2602.1,1.92148]
[1723317064029,0.07390865,2602.5,2602.1,1.92148]
[1723317064219,0.07390865,2602.5,2602.1,3.84296]
[1723317064907,1.92101,2602.8,2602.2,1.92143]
[1723317065108,0.07390865,2602.4,2602.2,1.92143]
[1723317065310,1.92101,2602.8,2602.2,1.92143]
[1723317065550,0.0738123,2602.3,2602.1,1.92148]
[1723317065713,1.92101,2602.8,2602.1,1.92148]
[1723317065913,0.0736983,2602.2,2602.1,1.92148]
[1723317066127,1.92101,2602.8,2602.2,1.92144]
[1723317068823,3.0891,2602.5,2601.8,1.92169]
[1723317069031,0.501031,2602.4,2602.0,1.92159]
[1723317069245,3.0891,2602.5,2602.0,1.92159]
[1723317069725,3.0891,2602.5,2602.0,1.92154]
[1723317070853,7.3,2603.0,2602.1,0.07685242]
[1723317070854,12.31,2603.0,2602.1,0.07685242]
[1723317071012,14.033075,2603.0,2602.1,3.04125242]
[1723317071750,0.07442603,2602.9,2602.1,3.04125242]
[1723317071934,0.07442603,2602.9,2602.2,0.07684206]
[1723317072549,0.07442603,2602.9,2602.4,1.92129]
[1723317076468,0.07442603,2602.9,2602.3,0.07684219]
[1723317076622,3.2325,2602.8,2602.0,3.84311]
[1723317076933,1.92108,2602.7,2602.0,1.92154]
[1723317077135,1.92108,2602.7,2602.0,3.84309]
[1723317077321,0.07421452,2602.6,2602.0,3.84309]
[1723317077523,0.07421452,2602.6,2602.0,2.305849]
[1723317078761,0.07421452,2602.6,2602.0,4.227399]
[1723317078981,0.07421452,2602.6,2602.0,3.84309]
[1723317079756,3.2325,2602.5,2602.0,3.84309]
[1723317080139,0.07402184,2602.4,2602.0,1.92154]
[1723317080471,0.07402184,2602.4,2602.2,1.92138]
[1723317080756,0.07402184,2602.4,2602.0,1.92156]
[1723317080757,0.07402184,2602.4,2602.0,1.92155]
[1723317081336,0.07402184,2602.4,2602.1,0.07685051]
[1723317081560,0.07402184,2602.4,2602.0,1.92155]
[1723317088052,0.07402184,2602.4,2602.0,3.8431]
[1723317088261,0.07402184,2602.4,2602.0,2.30586]
[1723317088784,0.07402184,2602.4,2602.0,4.22741]
[1723317089687,0.07402184,2602.4,2602.0,2.30586]
[1723317090498,0.07402184,2602.4,2602.2,1.92144]
[1723317091476,0.07402184,2602.4,2602.0,4.2274]
[1723317091685,0.07402184,2602.4,2602.1,0.42274]
[1723317093598,0.07402184,2602.4,2602.1,2.34426]
[1723317094194,0.07402184,2602.4,2602.2,1.92143]
[1723317103466,0.07402184,2602.4,2602.0,1.92154]
[1723317103693,0.07402184,2602.4,2602.0,3.84309]
[1723317103894,0.07402184,2602.4,2602.0,1.92154]
[1723317104484,2.8053,2602.3,2602.0,3.84309]
[1723317104690,0.07317796,2602.2,2602.0,3.84309]
[1723317105012,2.8053,2602.3,2602.0,3.84309]
[1723317105212,0.07306687,2602.1,2602.0,1.92154]
[1723317105828,2.8053,2602.3,2602.0,1.92154]
[1723317106126,2.8053,2602.3,2602.1,1.92152]
[1723317106282,0.07315904,2602.2,2602.1,1.92152]
[1723317106486,2.8053,2602.3,2602.0,1.92154]
[1723317106680,0.07315904,2602.2,2602.0,1.92154]
[1723317106919,2.8053,2602.3,2602.0,1.92154]
[1723317107145,0.07314141,2602.2,2601.4,1.92201]
[1723317107435,2.8053,2602.1,2601.4,1.92201]
[1723317107795,2.87826209,2602.0,2601.2,1.92216]
[1723317108016,2.8053,2601.8,2601.2,1.92216]
[1723317108266,3.28528721,2601.8,2601.2,1.92216]
[1723317108553,0.07266646,2601.7,2601.2,3.84429]
[1723317109435,2.8053,2601.6,2601.2,1.92213]
[1723317109745,0.07245456,2601.5,2601.2,1.92213]
[1723317110852,0.07245456,2601.5,2601.3,1.92205]
[1723317111148,0.07245456,2601.5,2601.4,1.92204]
[1723317113359,0.07245456,2601.5,2601.2,1.92213]
[1723317113514,0.07245456,2601.5,2601.2,3.84427]
[1723317113715,0.07245456,2601.5,2601.2,2.306557]
[1723317114415,0.07245456,2601.5,2601.2,4.228697]
[1723317114945,0.07245456,2601.5,2601.4,1.92204]
[1723317124084,0.07245456,2601.5,2601.4,3.92095594]
[1723317124290,0.07245456,2601.5,2601.4,5.84299594]
[1723317124493,7.3,2602.0,2601.8,3.84337]
[1723317124695,22.6617,2602.2,2601.8,1.92168]